bitfinex-derivatives/quotes_BTCF0:USTF0_20210109
["timestamp","ask_amount","ask_price","bid_price","bid_amount"]
[1610158266623,0.4375,40437.0,40383.0,0.01425141]
[1610158266624,0.02271173,40423.0,40383.0,0.01425141]
[1610158266923,0.2704,40427.0,40397.0,2.8929]
[1610158267525,0.2704,40427.0,40398.0,0.04791019]
[1610158267931,0.53804536,40443.0,40398.0,0.04791019]
[1610158267932,0.00761935,40443.0,40398.0,0.04791019]
[1610158268128,0.46343577,40444.0,40398.0,0.04791019]
[1610158268129,0.13632608,40434.0,40426.0,0.13632608]
[1610158268425,0.23523608,40434.0,40430.0,2.9131]
[1610158268825,0.23523608,40434.0,40431.0,0.00022739]
[1610158269026,0.23523608,40434.0,40431.0,0.01422656]
[1610158269225,0.09891,40434.0,40431.0,0.01422656]
[1610158270026,0.13632608,40432.0,40431.0,0.01422656]
[1610158270424,0.13632608,40432.0,40416.0,4.1428]
[1610158270625,0.13632608,40432.0,40417.0,0.00022739]
[1610158272127,0.13632608,40423.0,40417.0,0.00022739]
[1610158274029,0.13632608,40418.0,40417.0,0.00022739]
[1610158274430,0.13632608,40418.0,40415.0,0.13632608]
[1610158274629,0.13632608,40418.0,40401.0,3.23533457]
[1610158275229,0.13632608,40418.0,40402.0,0.00022743]
[1610158276129,0.13632608,40418.0,40405.0,0.13632608]
[1610158276529,0.13632608,40418.0,40406.0,0.00022741]
[1610158278032,0.13632608,40410.0,40406.0,0.00022741]
[1610158280035,0.09891,40434.0,40401.0,3.23533457]
[1610158280036,0.13632608,40403.0,40402.0,0.13655349]
[1610158280235,0.09891,40434.0,40407.0,0.00022741]
[1610158280438,1.7859,40449.0,40403.0,0.00022741]
[1610158280736,1.7859,40449.0,40408.0,0.00022741]
[1610158281036,0.2859,40449.0,40412.0,3.1716]
[1610158281435,0.2859,40449.0,40413.0,0.00022741]
[1610158281637,0.2859,40449.0,40412.0,3.1716]
[1610158281939,0.39955,40449.0,40412.0,3.1716]
[1610158282238,0.13632608,40418.0,40412.0,3.1716]
[1610158284040,0.09921,40434.0,40413.0,0.13632608]
[1610158284739,0.09921,40434.0,40414.0,0.00022739]
[1610158286143,0.13632608,40415.0,40414.0,0.00022739]
[1610158286742,0.13632608,40415.0,40413.0,0.13632608]
[1610158287741,0.13632608,40415.0,40407.0,0.07843]
[1610158287943,0.13632608,40415.0,40400.0,3.9292]
[1610158288144,0.09921,40434.0,40408.0,0.00022679]
[1610158288347,1.5,40432.0,40401.0,0.00022679]
[1610158288643,1.57796,40432.0,40400.0,3.9292]
[1610158288943,1.57796,40432.0,40402.0,0.00022681]
[1610158289144,1.57796,40432.0,40401.0,0.00022681]
[1610158289344,1.57796,40432.0,40403.0,0.00022683]
[1610158289744,1.57796,40432.0,40402.0,0.00022683]
[1610158289945,1.57796,40432.0,40404.0,0.00022683]
[1610158290145,0.13632608,40405.0,40403.0,0.00022685]
[1610158290644,0.13632608,40405.0,40400.0,3.9292]
[1610158290844,0.13632608,40405.0,40404.0,0.00022687]
[1610158291045,0.13632608,40405.0,40401.0,0.00022687]
[1610158291244,0.13632608,40405.0,40400.0,3.9292]
[1610158291848,0.13632608,40405.0,40401.0,0.00022689]
[1610158292048,0.13632608,40405.0,40400.0,3.9292]
[1610158292448,0.13632608,40405.0,40379.0,0.13632608]
[1610158293150,0.13632608,40405.0,40380.0,0.00022693]
[1610158293548,0.13632608,40405.0,40377.0,0.00022695]
[1610158293748,0.13632608,40405.0,40377.0,0.01405388]
[1610158294050,0.13632608,40405.0,40381.0,0.00022695]
[1610158294250,0.12135,40410.0,40378.0,0.00022695]
[1610158294448,0.12135,40410.0,40382.0,0.00022695]
[1610158294750,0.12135,40410.0,40377.0,0.01382693]
[1610158294751,0.12135,40410.0,40379.0,0.00022693]
[1610158295049,0.12135,40410.0,40383.0,0.00022693]
[1610158295248,0.12135,40410.0,40380.0,0.00022693]
[1610158295449,1.5,40409.0,40384.0,0.00022693]
[1610158295651,1.5981,40409.0,40381.0,0.00022693]
[1610158296049,1.5981,40409.0,40385.0,0.00022693]
[1610158296251,0.13632608,40386.0,40382.0,0.00022693]
[1610158296652,0.13632608,40386.0,40385.0,0.00022693]
[1610158296853,0.13632608,40386.0,40383.0,0.00022693]
[1610158297052,0.13632608,40386.0,40385.0,0.00022693]
[1610158297453,0.13632608,40386.0,40384.0,0.00022693]
[1610158297753,0.13632608,40386.0,40385.0,0.00022693]
[1610158298154,0.13632608,40379.0,40377.0,0.01405302]
[1610158298354,0.13632608,40379.0,40376.0,0.09399]
[1610158298557,0.13632608,40379.0,40371.0,0.13632608]
[1610158298755,0.13632608,40379.0,40378.0,0.01405505]
[1610158298958,0.13632608,40379.0,40372.0,0.0140562]
[1610158299155,0.13632608,40379.0,40378.0,0.01405775]
[1610158299555,0.13632608,40379.0,40369.0,0.01405857]
[1610158299758,0.13632608,40379.0,40378.0,0.00022701]
[1610158300056,0.13632608,40379.0,40370.0,0.01405903]
[1610158300256,0.09154,40383.0,40378.0,0.00022701]
[1610158300455,0.09154,40383.0,40371.0,0.01405926]
[1610158300860,0.09154,40383.0,40379.0,0.00022701]
[1610158301063,0.09154,40383.0,40366.0,0.01406147]
[1610158301261,0.09154,40383.0,40380.0,0.00022703]
[1610158301663,0.09154,40383.0,40367.0,0.01383659]
[1610158301664,0.09154,40383.0,40365.0,3.0443]
[1610158302063,0.09154,40383.0,40366.0,0.00022706]
[1610158302266,0.13632608,40367.0,40366.0,0.00022706]
[1610158303367,0.13632608,40367.0,40366.0,0.00022703]
[1610158303968,0.13632608,40367.0,40360.0,0.00022703]
[1610158304168,0.09154,40383.0,40366.0,0.00022703]
[1610158304469,0.09154,40383.0,40361.0,0.00022703]
[1610158304670,0.09154,40383.0,40367.0,0.00022703]
[1610158305070,3.50563,40396.0,40364.0,0.5821]
[1610158305271,3.50563,40396.0,40368.0,0.00022703]
[1610158305471,3.50563,40396.0,40365.0,0.00022703]
[1610158305872,3.50563,40396.0,40369.0,0.00022703]
[1610158306072,3.50563,40396.0,40365.0,0.00022703]
[1610158306272,0.13632608,40366.0,40365.0,0.13632608]
[1610158306873,0.13632608,40366.0,40365.0,0.00022704]
[1610158309480,0.13632608,40366.0,40360.0,0.00022702]
[1610158309681,0.13632608,40366.0,40365.0,0.00022702]
[1610158310082,0.13632608,40366.0,40361.0,0.00022704]
[1610158310280,0.13632608,40366.0,40365.0,0.00022704]
[1610158310481,1.49977296,40365.0,40350.0,0.09261]
[1610158310888,1.49977296,40365.0,40360.0,0.00022704]
[1610158311184,1.49977296,40365.0,40351.0,0.00022704]
[1610158311386,0.13632608,40366.0,40350.0,0.09261]
[1610158311681,0.13632608,40366.0,40352.0,0.00022705]
[1610158311981,0.13632608,40366.0,40353.0,3.7923]
[1610158312182,0.13632608,40366.0,40353.0,3.79252705]
[1610158312385,0.13632608,40366.0,40365.0,0.13632608]
[1610158312982,0.13632608,40366.0,40365.0,0.13655308]
[1610158313382,0.13632608,40366.0,40365.0,0.000227]
[1610158313684,0.13632608,40366.0,40360.0,0.000227]
[1610158313882,0.13632608,40366.0,40365.0,0.000227]
[1610158314183,0.13632608,40366.0,40361.0,0.000227]
[1610158314382,0.13632608,40366.0,40365.0,0.000227]
[1610158314784,0.13632608,40366.0,40362.0,0.000227]
[1610158314983,0.52184819,40366.0,40365.0,0.000227]
[1610158315187,0.52184819,40366.0,40363.0,0.000227]
[1610158315584,0.52184819,40366.0,40359.0,0.12528]
[1610158315585,0.52184819,40366.0,40365.0,0.000227]
[1610158315785,0.52184819,40366.0,40364.0,0.000227]
[1610158316188,0.52184819,40366.0,40365.0,0.000227]
[1610158317086,0.52184819,40366.0,40361.0,0.000227]
[1610158317486,0.52184819,40366.0,40365.0,0.000227]
[1610158317688,0.52184819,40366.0,40359.0,0.12528]
[1610158317689,0.52184819,40366.0,40362.0,0.000227]
[1610158317887,0.52184819,40366.0,40365.0,0.000227]
[1610158318288,0.52184819,40366.0,40363.0,0.000227]
[1610158318587,0.52184819,40366.0,40359.0,0.12528]
[1610158318588,0.52184819,40366.0,40365.0,0.000227]
[1610158318787,0.52184819,40366.0,40364.0,0.000227]
[1610158318987,0.52184819,40366.0,40360.0,0.000227]
[1610158319191,0.52184819,40366.0,40365.0,0.000227]
[1610158319588,0.52184819,40366.0,40361.0,0.000227]
[1610158319789,0.52184819,40366.0,40365.0,0.000227]
[1610158320089,0.38552211,40366.0,40365.0,2.7834]
[1610158320298,0.38552211,40366.0,40365.0,2.91995307]
[1610158320490,0.38552211,40366.0,40365.0,4.43376259]
[1610158320891,0.02264541,40421.0,40365.0,4.43376259]
[1610158321090,0.00759351,40434.0,40365.0,4.46709963]
[1610158321291,0.00759351,40434.0,40366.0,0.04735396]
[1610158321493,0.2964,40433.0,40366.0,0.04735396]
[1610158321692,0.39167,40433.0,40366.0,0.04735396]
[1610158322395,0.39167,40433.0,40420.0,0.13632608]
[1610158322595,0.39167,40433.0,40421.0,0.00022672]
[1610158322797,0.39167,40433.0,40423.0,3.8691]
[1610158323195,0.39167,40433.0,40424.0,0.00022672]
[1610158323794,0.39167,40433.0,40421.0,0.00022672]
[1610158323996,0.39167,40433.0,40425.0,0.00022672]
[1610158324296,0.39167,40433.0,40422.0,0.00022672]
[1610158324496,0.13632608,40426.0,40408.0,2.9263]
[1610158324696,0.13632608,40426.0,40423.0,0.00022673]
[1610158325096,0.13632608,40426.0,40409.0,0.00022673]
[1610158325400,0.13632608,40426.0,40424.0,0.00022673]
[1610158325598,0.13632608,40426.0,40410.0,0.00022673]
[1610158325798,0.13632608,40426.0,40425.0,0.00022673]
[1610158325997,0.13632608,40426.0,40411.0,0.00022673]
[1610158326298,0.13632608,40426.0,40425.0,0.00022673]
[1610158326498,0.39167,40433.0,40412.0,0.00022673]
[1610158326998,0.39167,40433.0,40409.0,0.00022673]
[1610158327200,0.39167,40433.0,40413.0,0.00022673]
[1610158327399,0.39167,40433.0,40410.0,0.00022673]
[1610158327598,0.39167,40433.0,40409.0,0.00022673]
[1610158328001,0.39167,40433.0,40408.0,2.9263]
[1610158328198,0.39167,40433.0,40408.0,2.73275435]
[1610158328400,0.13632608,40409.0,40408.0,2.73275435]
[1610158328798,0.13632608,40409.0,40407.0,0.12211]
[1610158329001,0.13632608,40409.0,40397.0,3.7881]
[1610158329199,0.13632608,40409.0,40360.0,0.03332892]
[1610158329699,0.13632608,40409.0,40398.0,0.00022677]
[1610158329899,0.13632608,40409.0,40398.0,0.09766677]
[1610158330202,0.13632608,40409.0,40399.0,0.00022676]
[1610158330400,0.37630016,40426.0,40404.0,0.13632608]
[1610158332102,0.37630016,40426.0,40411.0,3.6479]
[1610158332403,0.13632608,40422.0,40411.0,0.13632608]
[1610158332604,0.37630016,40426.0,40425.0,4.1039]
[1610158334003,0.37630016,40426.0,40420.0,0.09512]
[1610158334605,0.13632608,40421.0,40420.0,0.09512]
[1610158334806,0.13632608,40421.0,40407.0,0.10122]
[1610158335303,0.13632608,40421.0,40407.0,3.06182]
[1610158336350,0.37630016,40426.0,40407.0,3.06182]
[1610158336536,0.13632608,40411.0,40407.0,0.10122]
[1610158338439,0.13632608,40411.0,40408.0,0.13632608]
[1610158343245,0.13632608,40411.0,40407.0,0.10122]
[1610158343446,0.13632608,40411.0,40398.0,0.09766677]
[1610158344445,0.13632608,40411.0,40399.0,0.00022675]
[1610158344644,0.13632608,40400.0,40399.0,0.00022675]
[1610158349649,0.13632608,40400.0,40399.0,0.00045447]
[1610158350751,0.13632608,40400.0,40399.0,0.00022772]
[1610158354651,0.13632608,40400.0,40399.0,0.01453804]
[1610158356054,0.12736,40423.0,40399.0,0.01453804]
[1610158356251,0.37630016,40426.0,40399.0,0.01453804]
[1610158356452,0.37630016,40426.0,40400.0,0.00022772]
[1610158356657,0.13632608,40401.0,40400.0,0.00022772]
[1610158359456,0.23598608,40401.0,40400.0,0.00022772]
[1610158360357,1.73598608,40401.0,40400.0,0.00022772]
[1610158361156,0.23598608,40401.0,40399.0,0.00022772]
[1610158362960,0.23598608,40401.0,40400.0,0.00022782]
[1610158365460,0.23598608,40401.0,40399.0,0.00022772]
[1610158365661,0.23598608,40401.0,40400.0,0.00022781]
[1610158365862,0.23598608,40401.0,40399.0,0.00022772]
[1610158366662,1.73598608,40401.0,40399.0,0.00022772]
[1610158367662,0.23598608,40401.0,40399.0,0.00022772]
[1610158369868,1.73598608,40401.0,40399.0,0.00022772]
[1610158370867,1.73598608,40401.0,40358.0,0.13632608]
[1610158371367,1.73598608,40401.0,40360.0,0.01384597]
[1610158371768,1.73598608,40401.0,40360.0,0.10095597]
[1610158371966,1.73598608,40401.0,40360.0,0.08711]
[1610158372168,0.23598608,40401.0,40361.0,0.01384652]
[1610158372868,0.13632608,40362.0,40361.0,0.01384652]
[1610158373467,0.13632608,40362.0,40361.0,0.00022633]
[1610158374068,0.13632608,40362.0,40361.0,0.01384608]
[1610158375371,0.13632608,40362.0,40361.0,0.00022633]
[1610158375572,0.13632608,40362.0,40361.0,0.01384732]
[1610158376373,0.13632608,40362.0,40361.0,0.00022633]
[1610158381177,0.13632608,40362.0,40351.0,0.00022639]
[1610158381378,0.13632608,40362.0,40361.0,0.00022639]
[1610158381578,0.13632608,40362.0,40351.0,0.0138521]
[1610158382786,0.13632608,40352.0,40351.0,0.0138521]
[1610158388012,0.13632608,40352.0,40351.0,0.00022639]
[1610158389610,0.13632608,40352.0,40332.0,0.01385659]
[1610158389803,0.13632608,40352.0,40351.0,0.00022644]
[1610158390004,0.13632608,40352.0,40339.0,0.1101]
[1610158390400,0.13632608,40352.0,40351.0,0.00022644]
[1610158390596,0.13632608,40352.0,40340.0,0.00022644]
[1610158390797,0.12347,40363.0,40351.0,0.00022644]
[1610158391197,3.7293,40352.0,40341.0,0.00022644]
[1610158391397,3.7293,40352.0,40339.0,0.1101]
[1610158391597,3.7293,40352.0,40342.0,0.00022647]
[1610158391797,3.7293,40352.0,40340.0,0.00022649]
[1610158392197,3.7293,40352.0,40328.0,2.927]
[1610158392198,3.7293,40352.0,40329.0,0.00022649]
[1610158392398,3.7293,40352.0,40328.0,2.927]
[1610158392601,3.7293,40352.0,40330.0,0.00022651]
[1610158393000,0.13632608,40331.0,40329.0,0.00022651]
[1610158393203,0.13632608,40331.0,40328.0,2.927]
[1610158393401,0.13632608,40331.0,40330.0,0.00022651]
[1610158393703,0.13632608,40331.0,40329.0,0.00022651]
[1610158393904,0.13632608,40331.0,40328.0,2.927]
[1610158393905,0.13632608,40331.0,40330.0,0.00022651]
[1610158394505,0.13632608,40331.0,40329.0,0.00022649]
[1610158394703,0.13632608,40331.0,40330.0,0.00022649]
[1610158395203,0.13632608,40331.0,40329.0,0.00022649]
[1610158396205,0.128,40354.0,40330.0,3.1894]
[1610158396404,0.12347,40363.0,40330.0,3.1894]
[1610158396607,3.3512,40382.0,40331.0,0.00022646]
[1610158397008,3.3512,40382.0,40355.0,0.13632608]
[1610158397207,0.00757868,40403.0,40356.0,3.6171]
[1610158397607,0.00030297,40402.0,40356.0,3.6171]
[1610158397807,0.10343277,40402.0,40356.0,3.6171]
[1610158398209,0.00030297,40401.0,40356.0,3.6171]
[1610158398909,0.13632608,40357.0,40356.0,3.6171]
[1610158399109,0.13632608,40357.0,40355.0,0.13632608]
[1610158400610,0.13632608,40357.0,40346.0,3.669]
[1610158400913,0.11444,40373.0,40350.0,0.13632608]
[1610158401312,0.11444,40373.0,40351.0,0.00022641]
[1610158401812,0.11444,40373.0,40350.0,0.00022644]
[1610158402211,0.11444,40373.0,40349.0,0.10089]
[1610158402410,0.11444,40373.0,40351.0,0.00022644]
[1610158402612,0.11444,40373.0,40350.0,0.00022644]
[1610158402811,0.11444,40373.0,40352.0,0.00022644]
[1610158403212,0.11444,40373.0,40347.0,0.00022644]
[1610158403411,0.11444,40373.0,40346.0,3.669]
[1610158403613,0.11444,40373.0,40348.0,0.00022644]
[1610158404014,0.11444,40373.0,40347.0,0.00022644]
[1610158404213,4.1072,40382.0,40349.0,0.00022644]
[1610158404413,0.11335,40373.0,40348.0,0.00022644]
[1610158404814,0.11335,40373.0,40346.0,3.669]
[1610158404815,0.11335,40373.0,40350.0,0.00022644]
[1610158405014,0.11335,40373.0,40357.0,0.13632608]
[1610158405617,0.11335,40373.0,40358.0,0.00022642]
[1610158407116,0.13632608,40359.0,40358.0,0.00022642]
[1610158407616,0.13632608,40359.0,40357.0,0.00022466]
[1610158407816,0.13632608,40359.0,40347.0,0.07955]
[1610158407817,0.13632608,40359.0,40358.0,0.00022466]
[1610158408416,0.13632608,40359.0,40349.0,0.04560321]
[1610158408616,0.13632608,40359.0,40358.0,0.00022466]
[1610158409017,0.13632608,40359.0,40356.0,0.13632608]
[1610158409218,0.13632608,40359.0,40358.0,0.00022466]
[1610158409419,0.13632608,40359.0,40357.0,0.01332744]
[1610158409819,3.17737608,40387.0,40358.0,0.00022466]
[1610158410320,3.17737608,40387.0,40357.0,0.01332744]
[1610158410519,3.25588608,40387.0,40359.0,0.00022466]
[1610158410720,3.25588608,40387.0,40358.0,0.00022466]
[1610158411119,3.25588608,40387.0,40361.0,0.13632608]
[1610158411325,0.07851,40387.0,40361.0,0.13632608]
[1610158411521,0.07851,40387.0,40362.0,0.00022466]
[1610158412121,0.07851,40387.0,40362.0,0.01332752]
[1610158412520,3.5035,40384.0,40355.0,0.01332904]
[1610158413119,0.13632608,40356.0,40355.0,0.01332904]
[1610158425130,0.23999608,40356.0,40355.0,0.01332904]
[1610158425732,0.23999608,40356.0,40341.0,0.01334438]
[1610158425929,0.23999608,40356.0,40355.0,0.01334507]
[1610158426331,0.23999608,40356.0,40342.0,0.01334559]
[1610158426531,0.23999608,40356.0,40355.0,0.01334599]
[1610158426731,0.23999608,40356.0,40343.0,0.01334617]
[1610158426931,0.23999608,40356.0,40355.0,0.01334593]
[1610158427331,0.23999608,40356.0,40332.0,0.04565176]
[1610158427533,0.23999608,40356.0,40355.0,0.00022478]
[1610158427732,0.23999608,40356.0,40333.0,0.01334672]
[1610158428131,0.23999608,40356.0,40332.0,0.04565191]
[1610158428333,0.23999608,40356.0,40334.0,0.01337627]
[1610158428934,0.23999608,40356.0,40332.0,0.0456821]
[1610158429135,0.10367,40356.0,40335.0,0.01337684]
[1610158429334,0.10367,40356.0,40333.0,0.01337675]
[1610158429638,0.10367,40356.0,40336.0,0.01337638]
[1610158429837,0.10367,40356.0,40334.0,0.01337684]
[1610158430037,3.409,40345.0,40334.0,0.01337684]
[1610158430238,3.409,40345.0,40337.0,0.01337813]
[1610158430239,3.51833,40345.0,40337.0,0.01337813]
[1610158430438,3.51833,40345.0,40335.0,0.01337955]
[1610158430639,3.51833,40345.0,40338.0,0.01338412]
[1610158430940,3.51833,40345.0,40336.0,0.01338636]
[1610158431139,3.51833,40345.0,40339.0,0.000225]
[1610158431539,3.51833,40345.0,40319.0,0.01338865]
[1610158431740,3.51833,40345.0,40340.0,0.000225]
[1610158431939,3.51833,40345.0,40320.0,0.000225]
[1610158432341,3.51833,40345.0,40313.0,0.04575028]
[1610158432539,3.51833,40345.0,40321.0,0.000225]
[1610158432741,3.51833,40345.0,40314.0,0.0133891]
[1610158433139,3.51833,40345.0,40322.0,0.000225]
[1610158433341,3.51833,40345.0,40315.0,0.01338915]
[1610158433540,3.51833,40345.0,40323.0,0.000225]
[1610158433942,3.51833,40345.0,40316.0,0.01338927]
[1610158434143,3.51833,40345.0,40324.0,0.000225]
[1610158434344,3.51833,40345.0,40317.0,0.0133904]
[1610158434540,3.51833,40345.0,40325.0,0.00022502]
[1610158434944,3.51833,40345.0,40313.0,0.01339018]
[1610158435144,3.51833,40345.0,40326.0,0.00022502]
[1610158435343,3.51833,40345.0,40314.0,0.00022502]
[1610158435745,3.51833,40345.0,40313.0,0.01339018]
[1610158435943,3.51833,40345.0,40315.0,0.00022502]
[1610158436346,3.51833,40345.0,40314.0,0.00022502]
[1610158436545,3.51833,40345.0,40313.0,0.01316516]
[1610158436848,1.5,40344.0,40313.0,0.01316516]
[1610158437048,2.8556,40325.0,40313.0,0.01339019]
[1610158437247,2.8556,40325.0,40289.0,3.6306]
[1610158437248,0.13632608,40314.0,40310.0,0.00022506]
[1610158437446,0.13632608,40314.0,40290.0,0.03239332]
[1610158437648,2.8006,40313.0,40290.0,0.03239332]
[1610158437847,2.8006,40313.0,40311.0,0.00022509]
[1610158438048,2.8006,40313.0,40285.0,0.04579376]
[1610158438248,2.8006,40313.0,40312.0,0.00022509]
[1610158438648,2.8006,40313.0,40286.0,0.01317422]
[1610158438847,2.8006,40313.0,40312.0,0.00022511]
[1610158439046,2.8006,40313.0,40287.0,0.01339814]
[1610158439248,2.8006,40313.0,40297.0,0.0907]
[1610158439448,2.8006,40313.0,40312.0,0.00022509]
[1610158439651,2.8006,40313.0,40298.0,0.01339719]
[1610158439852,2.8006,40313.0,40312.0,0.00022509]
[1610158440050,2.8006,40313.0,40299.0,0.00022509]
[1610158440451,2.8006,40313.0,40298.0,0.01339719]
[1610158440651,2.8006,40313.0,40300.0,0.00022509]
[1610158440852,2.8006,40313.0,40299.0,0.00022509]
[1610158441252,2.8006,40313.0,40300.0,0.13632608]
[1610158441453,2.8006,40313.0,40300.0,0.13655117]
[1610158441654,2.8006,40313.0,40301.0,0.01339556]
[1610158442454,2.8006,40313.0,40301.0,0.01317049]
[1610158442853,2.8006,40313.0,40302.0,0.00022507]
[1610158443053,2.8006,40313.0,40301.0,0.01339556]
[1610158443256,2.8006,40313.0,40306.0,0.13632608]
[1610158443856,2.8006,40313.0,40307.0,0.01339546]
[1610158444454,0.21930077,40345.0,40307.0,0.01339546]
[1610158444652,0.21930077,40345.0,40309.0,4.0482]
[1610158444852,0.21930077,40345.0,40309.0,4.12604]
[1610158445054,0.21930077,40345.0,40310.0,0.01339198]
[1610158445252,0.21930077,40345.0,40320.0,0.13632608]
[1610158445657,0.21930077,40345.0,40321.0,0.00022504]
[1610158447057,0.21930077,40345.0,40327.0,3.6984]
[1610158447260,0.21930077,40345.0,40335.0,0.13632608]
[1610158447456,0.21930077,40345.0,40336.0,0.3991]
[1610158447864,0.21930077,40345.0,40336.0,0.39932499]
[1610158448058,0.21930077,40345.0,40337.0,0.00022494]
[1610158448258,0.10997077,40345.0,40337.0,0.00022494]
[1610158448658,0.10997077,40345.0,40336.0,0.3991]
[1610158448858,0.10997077,40345.0,40338.0,0.00022491]
[1610158449059,0.10997077,40345.0,40337.0,0.00022491]
[1610158449259,0.10997077,40345.0,40344.0,3.74092608]
[1610158449459,0.10997077,40345.0,40344.0,3.83421608]
[1610158449660,0.10997077,40345.0,40344.0,5.33421608]
[1610158449860,0.10997077,40345.0,40344.0,1.74298886]
[1610158450059,0.10997077,40345.0,40344.0,1.72984092]
[1610158450262,0.10997077,40345.0,40344.0,0.22984092]
[1610158450460,0.10997077,40345.0,40344.0,0.24298515]
[1610158451261,0.10997077,40345.0,40344.0,0.22984092]
[1610158451661,0.10997077,40345.0,40344.0,0.24298257]
[1610158453062,0.10997077,40345.0,40344.0,0.72188257]
[1610158457465,0.10997077,40345.0,40344.0,0.70874092]
[1610158460168,0.10997077,40345.0,40344.0,0.22984092]
[1610158461371,0.24629685,40345.0,40344.0,0.22984092]
[1610158461970,0.24629685,40345.0,40344.0,0.09351484]
[1610158462171,0.24629685,40345.0,40344.0,0.00022484]
[1610158462371,0.24629685,40345.0,40331.0,0.10538]
[1610158462572,0.24629685,40345.0,40324.0,3.9527]
[1610158462772,0.24629685,40345.0,40344.0,0.00022487]
[1610158462974,0.24629685,40345.0,40324.0,3.9527]
[1610158462975,0.24629685,40345.0,40325.0,0.00022487]
[1610158463172,0.24629685,40345.0,40324.0,3.9527]
[1610158463372,0.10997077,40345.0,40333.0,0.13632608]
[1610158463773,0.10997077,40345.0,40334.0,0.00022486]
[1610158465378,0.24629685,40345.0,40344.0,0.13632608]
[1610158465579,0.10997077,40345.0,40344.0,0.13632608]
[1610158465777,0.10997077,40345.0,40344.0,0.13655094]
[1610158467378,0.10997077,40345.0,40344.0,0.26030094]
[1610158467577,0.10997077,40345.0,40344.0,0.27335358]
[1610158473087,0.10997077,40345.0,40344.0,0.26030094]
[1610158473289,0.10997077,40345.0,40344.0,0.12397486]
[1610158473486,0.10997077,40345.0,40344.0,0.00022486]
[1610158473886,0.10997077,40345.0,40335.0,0.01327801]
[1610158474286,0.10997077,40345.0,40344.0,0.00022452]
[1610158474486,0.10997077,40345.0,40335.0,0.01305349]
[1610158474487,0.10997077,40345.0,40336.0,0.00022452]
[1610158474688,0.10997077,40345.0,40344.0,0.00022452]
[1610158474888,0.10997077,40345.0,40337.0,0.00022452]
[1610158475288,0.10997077,40345.0,40335.0,0.01305349]
[1610158475289,0.10997077,40345.0,40344.0,0.13632608]
[1610158475689,0.10997077,40345.0,40344.0,0.14960145]
[1610158495509,0.24629685,40345.0,40344.0,0.14960145]
[1610158495709,0.24629685,40345.0,40344.0,0.01327537]
[1610158496310,0.77819685,40345.0,40332.0,0.013267]
[1610158496511,0.77819685,40345.0,40344.0,0.0132697]
[1610158496710,0.77819685,40345.0,40333.0,0.01327146]
[1610158497111,0.77819685,40345.0,40332.0,0.01327243]
[1610158497511,0.13632608,40333.0,40327.0,0.0321865]
[1610158498114,0.13632608,40333.0,40323.0,0.04547521]
[1610158498313,0.13632608,40333.0,40328.0,0.01327331]
[1610158498714,0.13632608,40333.0,40323.0,0.1007003]
[1610158498916,0.13632608,40333.0,40329.0,0.01327357]
[1610158499116,0.13632608,40333.0,40324.0,0.01327334]
[1610158499515,0.13632608,40333.0,40332.0,0.13632608]
[1610158499915,0.13632608,40333.0,40332.0,0.14959923]
[1610158500115,0.23278077,40345.0,40332.0,0.14959923]
[1610158500417,0.23278077,40345.0,40333.0,0.0132728]
[1610158501619,0.23278077,40345.0,40344.0,0.13632608]
[1610158501620,0.24629685,40345.0,40344.0,0.13632608]
[1610158502017,0.24629685,40345.0,40344.0,0.14959505]
[1610158502617,0.24629685,40345.0,40344.0,0.13632608]
[1610158502818,0.24629685,40345.0,40344.0,0.14959131]
[1610158503217,0.10997077,40345.0,40344.0,0.14959131]
[1610158504417,0.10997077,40345.0,40344.0,0.65909131]
[1610158505016,0.10997077,40345.0,40344.0,0.69126504]
[1610158508422,0.10997077,40345.0,40344.0,0.80993504]
[1610158513431,0.10997077,40345.0,40344.0,2.30993504]
[1610158513832,0.09961,40390.0,40344.0,2.36510345]
[1610158514032,0.09961,40390.0,40344.0,1.85560345]
[1610158514232,0.09961,40390.0,40374.0,3.6145]
[1610158514436,0.09961,40390.0,40375.0,1.5]
[1610158514633,0.09961,40390.0,40375.0,1.54538306]
[1610158514834,0.09961,40390.0,40376.0,0.01324165]
[1610158515033,0.2969,40428.0,40376.0,0.04537783]
[1610158515634,0.2969,40428.0,40417.0,0.13632608]
[1610158516236,0.2969,40428.0,40418.0,0.0002242]
[1610158517235,0.2969,40428.0,40417.0,0.13632608]
[1610158517636,0.13632608,40425.0,40424.0,0.13632608]
[1610158518637,0.13632608,40425.0,40396.0,0.09675]
[1610158518838,0.13632608,40425.0,40406.0,3.4445]
[1610158519437,0.13632608,40425.0,40407.0,0.00022418]
[1610158519638,0.13632608,40425.0,40423.0,0.13632608]
[1610158521040,0.13632608,40425.0,40406.0,3.4445]
[1610158521440,0.13632608,40425.0,40407.0,0.0002242]
[1610158521640,0.2969,40428.0,40419.0,0.13632608]
[1610158522644,0.08583,40430.0,40419.0,0.13632608]
[1610158522841,0.2836,40452.0,40419.0,0.13632608]
[1610158523042,0.2711,40451.0,40419.0,0.13632608]
[1610158523239,0.38059,40451.0,40419.0,0.13632608]
[1610158523641,0.38059,40451.0,40443.0,0.13632608]
[1610158525645,0.38059,40451.0,40450.0,0.13632608]
[1610158526846,0.10949,40451.0,40450.0,0.13632608]
[1610158527045,3.02609,40451.0,40450.0,0.13632608]
[1610158527452,3.02609,40451.0,40422.0,3.6357]
[1610158527648,3.02609,40451.0,40444.0,0.13632608]
[1610158527849,0.10949,40451.0,40444.0,0.13632608]
[1610158528250,3.419,40465.0,40444.0,0.13632608]
[1610158529756,0.25787608,40445.0,40444.0,0.13632608]
[1610158531154,0.25787608,40445.0,40433.0,3.5666]
[1610158531754,0.12155,40445.0,40439.0,0.13632608]
[1610158533654,0.13632608,40440.0,40439.0,0.13632608]
[1610158536457,0.13632608,40440.0,40378.0,1.5]
[1610158536657,3.7243,40438.0,40391.0,3.7806]
[1610158537657,0.2807,40437.0,40423.0,0.13632608]
[1610158537861,0.2807,40437.0,40391.0,3.7806]
[1610158538659,0.2807,40437.0,40369.0,0.273]
[1610158538858,0.2807,40437.0,40391.0,3.894]
[1610158539058,0.2807,40437.0,40391.0,3.97251]
[1610158539660,0.2807,40437.0,40426.0,0.13632608]
[1610158541763,0.13632608,40427.0,40426.0,0.13632608]
[1610158542064,0.24622608,40427.0,40426.0,0.13632608]
[1610158543164,0.24622608,40427.0,40401.0,0.09251]
[1610158543763,3.6148,40418.0,40409.0,0.13632608]
[1610158545164,0.1099,40427.0,40409.0,0.13632608]
[1610158545767,0.13632608,40410.0,40409.0,0.13632608]
[1610158550073,0.1099,40427.0,40409.0,0.13632608]
[1610158550273,3.0527,40435.0,40409.0,0.13632608]